bitfinex/quotes_SOLUSD_20251024
["timestamp","ask_amount","ask_price","bid_price","bid_amount"]
[1761335786815,5.87226721,193.34,193.3,0.7]
[1761335787488,5.17226721,193.34,193.3,0.7]
[1761335787813,5.87226721,193.34,193.3,0.7]
[1761335788901,5.17226721,193.34,193.3,5.87327156]
[1761335789091,36.06,193.33,193.3,5.87327156]
[1761335789298,36.06,193.33,193.31,0.7]
[1761335789494,36.06,193.33,193.3,5.87327156]
[1761335789699,36.06,193.33,193.3,0.7]
[1761335789915,36.76,193.33,193.29,5.87352765]
[1761335790703,0.7,193.32,193.28,5.87379587]
[1761335790928,0.7,193.32,193.26,23.58]
[1761335790929,4.18322752,193.32,193.26,23.58]
[1761335791098,4.18322752,193.32,193.26,39.11961306]
[1761335791099,3.48322752,193.31,193.26,39.11961306]
[1761335791292,36.06,193.3,193.26,39.11961306]
[1761335791602,36.76,193.3,193.26,28.7543332]
[1761335793121,36.06,193.3,193.26,28.0543332]
[1761335793329,0.7,193.29,193.26,28.0543332]
[1761335794127,0.7,193.29,193.26,5.1743332]
[1761335794429,3.48322752,193.27,193.22,5.84524062]
[1761335794603,39.54322752,193.27,193.22,5.84524062]
[1761335794921,0.67,193.26,193.22,5.84524062]
[1761335795296,3.48322752,193.24,193.2,0.67]
[1761335795513,39.54322752,193.24,193.2,0.67]
[1761335795816,36.73,193.24,193.2,0.67]
[1761335795993,36.73,193.24,193.17,0.77]
[1761335795994,3.48322752,193.22,193.17,0.77]
[1761335796426,4.15322752,193.22,193.17,0.77]
[1761335796604,4.15322752,193.22,193.18,28.05651328]
[1761335797006,0.67,193.22,193.18,28.05651328]
[1761335797223,4.15322752,193.22,193.18,28.72651328]
[1761335797518,4.15322752,193.22,193.18,5.84651328]
[1761335797717,0.67,193.21,193.18,28.72651328]
[1761335798023,3.48322752,193.22,193.18,28.72651328]
[1761335798218,3.48322752,193.22,193.18,28.05651328]
[1761335798518,0.67,193.21,193.18,28.05651328]
[1761335798702,3.48322752,193.22,193.18,28.72651328]
[1761335798896,4.15322752,193.22,193.18,28.72651328]
[1761335799297,0.67,193.22,193.18,28.05651328]
[1761335799513,8.65849833,193.23,193.19,5.8462385]
[1761335799719,9.32849833,193.23,193.19,5.8462385]
[1761335800226,4.15322752,193.23,193.19,5.8462385]
[1761335800534,3.48322752,193.23,193.2,0.67]
[1761335801503,45.38817111,193.24,193.2,0.67]
[1761335801721,5.84461856,193.26,193.2,5.84584249]
[1761335802030,36.06,193.25,193.2,5.84584249]
[1761335802323,36.06,193.25,193.21,0.67]
[1761335803620,36.06,193.25,193.21,5.84560648]
[1761335804725,36.06,193.25,193.22,0.67]
[1761335806931,0.67,193.3,193.24,3.48322752]
[1761335807118,36.06,193.29,193.25,3.48322752]
[1761335807515,0.67,193.31,193.26,4.15322752]
[1761335807722,36.06,193.3,193.27,5.17410875]
[1761335808035,36.06,193.3,193.27,5.84410875]
[1761335811236,3.48322752,193.32,193.27,67.84410875]
[1761335811532,36.74,193.31,193.27,67.17410875]
[1761335811910,3.48322752,193.28,193.27,62.0]
[1761335812124,39.54322752,193.28,193.27,62.0]
[1761335812308,40.22322752,193.28,193.27,62.0]
[1761335815137,45.39706857,193.28,193.27,62.0]
[1761335817228,45.39706857,193.28,193.23,67.83517495]
[1761335817543,0.68,193.27,193.23,67.83517495]
[1761335820236,23.80779364,193.33,193.23,67.17517495]
[1761335820433,3.48322752,193.29,193.24,0.7]
[1761335820756,36.06,193.28,193.24,0.7]
[1761335821044,5.1725676,193.33,193.25,3.48322752]
[1761335821228,36.06,193.32,193.26,3.48322752]
[1761335821421,36.06,193.32,193.23,80.11312454]
[1761335821422,4.16322752,193.31,193.23,96.35515277]
[1761335821628,4.16322752,193.31,193.24,0.7]
[1761335821851,0.68,193.3,193.24,0.7]
[1761335822448,0.68,193.3,193.25,5.17464424]
[1761335822648,0.68,193.3,193.26,0.7]
[1761335822850,9.33665988,193.3,193.24,5.87483754]
[1761335823033,3.48322752,193.29,193.24,5.87483754]
[1761335823227,39.54322752,193.28,193.24,62.7]
[1761335823448,3.48322752,193.25,193.23,62.0]
[1761335823647,36.06,193.24,193.23,62.0]
[1761335824356,39.54322752,193.24,193.23,62.0]
[1761335825642,40.22322752,193.24,193.23,62.0]
[1761335825831,39.54322752,193.24,193.23,62.0]
[1761335826448,40.22322752,193.24,193.23,62.0]
[1761335826646,40.22322752,193.24,193.21,62.0]
[1761335826954,40.22322752,193.24,193.19,62.0]
[1761335826955,3.48322752,193.22,193.19,62.0]
[1761335827152,3.48322752,193.2,193.19,62.0]
[1761335827331,3.48322752,193.2,193.17,62.1]
[1761335827529,3.48322752,193.2,193.17,67.27671712]
[1761335827530,3.48322752,193.19,193.17,67.27671712]
[1761335827944,4.16322752,193.2,193.17,67.27671712]
[1761335828134,3.48322752,193.2,193.17,67.97671712]
[1761335828328,39.54322752,193.21,193.18,0.7]
[1761335828527,3.48322752,193.2,193.17,67.27671712]
[1761335828723,3.48322752,193.2,193.17,67.97671712]
[1761335829342,3.48322752,193.2,193.18,0.7]
[1761335830140,3.48322752,193.2,193.17,67.27671712]
[1761335830337,36.06,193.19,193.17,67.27671712]
[1761335830544,36.06,193.19,193.18,0.7]
[1761335830933,3.48322752,193.25,193.18,66.18322752]
[1761335831138,29.3,193.24,193.2,3.48322752]
[1761335831340,3.48322752,193.26,193.21,0.7]
[1761335831534,3.48322752,193.26,193.21,62.7]
[1761335831535,36.06,193.25,193.21,62.7]
[1761335831938,36.06,193.25,193.22,0.7]
[1761335832330,36.06,193.25,193.23,5.17517983]
[1761335833032,0.68,193.31,193.24,4.18322752]
[1761335833257,39.54322752,193.3,193.24,0.7]
[1761335833534,4.16322752,193.29,193.24,0.7]
[1761335834234,36.06,193.29,193.26,3.48322752]
[1761335834449,36.06,193.29,193.25,8.65787176]
[1761335834732,36.06,193.29,193.26,0.7]
[1761335835435,36.06,193.29,193.27,5.17410875]
[1761335835946,36.06,193.29,193.27,5.87410875]
[1761335836142,36.06,193.29,193.27,5.17410875]
[1761335836458,36.06,193.29,193.28,0.7]
[1761335836640,22.88,193.35,193.28,9.35698179]
[1761335836641,3.48322752,193.35,193.28,9.35698179]
[1761335836848,0.68,193.36,193.28,9.35698179]
[1761335836849,39.54322752,193.34,193.28,9.35698179]
[1761335837152,39.54322752,193.34,193.29,11.57647521]
[1761335837530,39.54322752,193.34,193.3,0.7]
[1761335837931,36.06,193.34,193.3,0.7]
[1761335838139,36.06,193.34,193.3,67.87324242]
[1761335839450,39.54322752,193.34,193.3,62.7]
[1761335840354,36.06,193.34,193.3,62.7]
[1761335841158,36.06,193.34,193.3,67.87330148]
[1761335841342,40.22322752,193.34,193.3,62.7]
[1761335842865,36.74,193.34,193.3,62.7]
[1761335843743,8.07997798,193.35,193.3,67.85319008]
[1761335844050,36.06,193.34,193.3,67.17319008]
[1761335844367,36.06,193.34,193.31,0.68]
[1761335844569,36.74,193.34,193.31,0.68]
[1761335844862,36.74,193.34,193.3,67.85319008]
[1761335845066,36.74,193.34,193.3,67.17319008]
[1761335845366,36.74,193.34,193.31,0.68]
[1761335845868,38.96800262,193.34,193.3,67.17319008]
[1761335846065,36.06,193.33,193.31,0.68]
[1761335849866,36.06,193.33,193.31,62.68]
[1761335850266,0.68,193.38,193.32,2.90800262]
[1761335850452,0.68,193.38,193.32,62.68]
[1761335850453,36.06,193.37,193.32,62.68]
[1761335850767,38.28800262,193.37,193.32,62.0]
[1761335850974,5.17117453,193.38,193.33,0.68]
[1761335851157,36.06,193.37,193.33,0.68]
[1761335851769,36.06,193.36,193.33,0.68]
[1761335852964,36.06,193.36,193.33,5.85245496]
[1761335853171,36.06,193.36,193.34,0.68]
[1761335853983,36.06,193.36,193.32,62.0]
[1761335854187,7.40050559,193.33,193.32,62.0]
[1761335854462,41.23250297,193.33,193.26,38.41800336]
[1761335854675,2.22800262,193.29,193.26,62.0]
[1761335854848,36.06,193.28,193.26,62.0]
[1761335855042,36.06,193.28,193.26,62.68]
[1761335855467,36.06,193.28,193.27,0.68]
[1761335855649,36.06,193.28,193.26,5.17432947]
[1761335855650,2.22800262,193.29,193.26,5.85432947]
[1761335856376,36.06,193.28,193.26,5.85432947]
[1761335856548,2.22800262,193.29,193.26,5.85432947]
[1761335856750,36.06,193.28,193.26,5.85432947]
[1761335857462,2.22800262,193.29,193.26,5.85432947]
[1761335857642,36.06,193.28,193.26,5.85432947]
[1761335857844,2.22800262,193.3,193.26,5.85432947]
[1761335858165,36.06,193.29,193.26,5.85432947]
[1761335859165,38.28800262,193.29,193.26,5.85432947]
[1761335859868,2.22800262,193.29,193.26,5.85432947]
[1761335860075,36.06,193.28,193.26,5.85432947]
[1761335862757,2.90800262,193.3,193.26,5.85432947]
[1761335862962,36.06,193.29,193.26,5.85432947]
[1761335864175,36.06,193.29,193.23,0.68]
[1761335864176,2.90800262,193.28,193.23,0.68]
[1761335864349,36.06,193.27,193.23,5.17517983]
[1761335864671,36.06,193.27,193.24,0.68]
[1761335865453,35.91511,193.27,193.25,5.17464424]
[1761335865966,35.91511,193.27,193.25,5.85464424]
[1761335866276,35.91511,193.27,193.25,5.17464424]
[1761335866869,2.22800262,193.28,193.25,5.17464424]
[1761335867167,36.06,193.27,193.25,5.17464424]
[1761335867348,36.06,193.27,193.24,5.17491202]
[1761335867546,36.06,193.27,193.25,0.68]
[1761335868172,0.68,193.28,193.25,0.68]
[1761335868361,36.06,193.27,193.25,0.68]
[1761335868760,2.22800262,193.26,193.25,62.0]
[1761335868965,2.90800262,193.26,193.21,62.0]
[1761335869181,36.06,193.27,193.21,62.0]
[1761335869182,2.22800262,193.23,193.21,62.0]
[1761335869475,36.06,193.22,193.21,62.0]
[1761335869670,36.06,193.22,193.2,5.17597239]
[1761335869671,2.90800262,193.23,193.19,62.0]
[1761335869851,36.06,193.22,193.19,62.7]
[1761335871249,36.06,193.21,193.19,67.87621122]
[1761335871450,36.06,193.21,193.2,0.7]
[1761335872775,5.17467443,193.25,193.2,5.87592791]
[1761335872959,36.06,193.24,193.21,0.7]
[1761335873664,36.06,193.24,193.21,62.7]
[1761335874554,36.06,193.24,193.21,62.0]
[1761335874877,36.06,193.24,193.22,0.7]
[1761335875969,5.17448164,193.26,193.22,0.7]
[1761335876279,36.06,193.25,193.22,67.87543541]
[1761335876476,36.06,193.24,193.22,67.87543541]
[1761335876655,36.06,193.24,193.23,0.7]
[1761335877477,7.40221962,193.27,193.23,5.87515757]
[1761335877685,36.06,193.24,193.23,5.87515757]
[1761335878186,8.12221962,193.27,193.23,5.87515757]
[1761335878482,36.06,193.26,193.23,5.87515757]
[1761335878979,8.12221962,193.27,193.23,5.87515757]
[1761335879186,36.06,193.26,193.23,5.87515757]
[1761335879477,36.06,193.26,193.22,67.17542537]
[1761335879478,36.78,193.26,193.22,67.17542537]
[1761335879780,36.78,193.26,193.23,62.0]
[1761335880383,36.06,193.26,193.23,62.0]
[1761335880560,36.78,193.26,193.23,62.0]
[1761335880961,0.72,193.26,193.23,62.0]
[1761335881263,36.06,193.25,193.23,62.0]
[1761335881464,0.72,193.26,193.23,62.0]
[1761335881782,36.06,193.25,193.23,62.0]
[1761335884478,0.72,193.26,193.23,62.0]
[1761335884857,41.23467636,193.25,193.23,62.0]
[1761335885064,36.06,193.24,193.23,62.0]
[1761335885386,36.78,193.24,193.23,62.0]
[1761335885883,36.06,193.24,193.23,62.0]
[1761335888184,44.18291464,193.24,193.23,62.0]
[1761335891589,57.1201947,193.24,193.18,62.0]
[1761335891767,2.22800262,193.22,193.18,62.0]
[1761335892088,36.06,193.21,193.18,62.0]
[1761335892269,2.22800262,193.19,193.18,62.0]
[1761335892471,2.22800262,193.19,193.17,0.1]
[1761335892681,39.00800262,193.18,193.17,0.1]
[1761335893583,44.18452192,193.18,193.17,0.1]
[1761335895998,55.06099713,193.18,193.17,0.1]
[1761335896187,19.00099713,193.18,193.17,0.1]
[1761335896399,55.06099713,193.18,193.17,0.1]
[1761335898288,16.77299451,193.18,193.17,0.1]
[1761335898489,77.94099713,193.18,193.17,0.1]
[1761335903120,77.94099713,193.18,193.17,0.1]
[1761335903907,55.06099713,193.18,193.16,0.1]
[1761335904106,10.87647521,193.13,193.09,0.1]
[1761335904310,25.10800262,193.1,193.09,0.1]
[1761335904507,61.85800262,193.1,193.09,0.1]
[1761335904711,63.12200419,193.1,193.09,0.1]
[1761335905122,59.63,193.1,193.09,0.1]
[1761335905300,63.12200419,193.1,193.09,0.1]
[1761335905705,2.07485022,193.12,193.09,0.77]
[1761335905904,8.66959557,193.14,193.09,0.77]
[1761335906100,36.06,193.13,193.09,0.77]
[1761335906299,39.55200419,193.13,193.09,0.77]
[1761335906499,3.49200419,193.12,193.09,0.77]
[1761335907625,39.55200419,193.13,193.09,0.77]
[1761335908323,5.17812758,193.12,193.09,0.77]
[1761335908516,36.08,193.11,193.09,0.77]
[1761335908924,36.08,193.11,193.09,0.1]
[1761335909227,22.88,193.16,193.09,0.1]
[1761335909228,0.69,193.2,193.1,4.16200419]
[1761335909414,0.69,193.2,193.11,3.49200419]
[1761335909415,3.49200419,193.18,193.11,3.49200419]
[1761335909615,3.49200419,193.18,193.12,0.67]
[1761335910531,8.66877984,193.18,193.12,5.84806326]
[1761335910731,36.08,193.17,193.13,0.67]
[1761335911633,39.57200419,193.17,193.13,0.67]
[1761335912312,36.08,193.17,193.13,0.67]
[1761335916238,3.49200419,193.15,193.13,62.0]
[1761335916607,3.49200419,193.14,193.13,62.0]
[1761335917533,5.17739994,193.15,193.13,62.0]
[1761335918022,8.66940413,193.15,193.13,62.0]
[1761335918335,0.69,193.14,193.13,62.0]
[1761335918639,9.35940413,193.15,193.13,62.0]
[1761335920127,36.08,193.14,193.13,62.0]
[1761335922520,36.08,193.14,193.13,62.67]
[1761335922935,36.08,193.14,193.13,62.0]
[1761335923528,36.08,193.14,193.13,62.67]
[1761335924238,36.08,193.14,193.13,62.0]
[1761335924442,40.26200419,193.14,193.13,62.0]
[1761335924641,40.26200419,193.14,193.09,0.1]
[1761335924824,3.49200419,193.12,193.09,0.1]
[1761335925037,36.08,193.11,193.09,0.1]
[1761335925330,3.49200419,193.1,193.09,0.1]
[1761335925532,18.1207652,193.15,193.09,0.1]
[1761335925848,3.49200419,193.11,193.09,0.1]
[1761335926032,36.08,193.1,193.09,0.1]
[1761335926833,8.67043616,193.11,193.09,0.1]
[1761335927032,36.08,193.1,193.09,0.1]
[1761335927238,8.67043616,193.11,193.09,0.1]
[1761335927626,36.08,193.1,193.09,0.1]
[1761335927840,39.57200419,193.1,193.09,0.1]
[1761335929155,44.75066809,193.1,193.09,0.1]
[1761335930049,44.75066809,193.1,193.09,0.8]
[1761335930050,36.08,193.1,193.09,0.8]
[1761335930425,41.2586639,193.1,193.09,0.1]
[1761335930620,36.08,193.1,193.09,0.1]
[1761335930848,39.57200419,193.1,193.09,0.1]
[1761335931144,36.08,193.1,193.09,0.1]
[1761335931351,39.57200419,193.1,193.09,0.1]
[1761335931552,36.08,193.1,193.09,0.1]
[1761335932552,8.67060717,193.11,193.09,0.1]
[1761335932754,36.08,193.1,193.09,0.1]
[1761335932951,36.08,193.1,193.09,0.8]
[1761335935352,36.08,193.1,193.09,0.1]
[1761335936026,36.08,193.1,193.09,62.1]
[1761335936231,41.2586639,193.1,193.09,62.1]
[1761335936430,44.75066809,193.1,193.09,62.1]
[1761335936739,8.67066809,193.1,193.09,62.1]
[1761335936939,44.75066809,193.1,193.09,62.1]
[1761335938924,39.57200419,193.1,193.09,62.1]
[1761335940250,5.17824756,193.12,193.09,62.1]
[1761335940459,3.49200419,193.1,193.09,62.77]
[1761335940841,3.49200419,193.1,193.09,62.1]
[1761335941147,36.08,193.11,193.09,62.77]
[1761335941454,39.57200419,193.11,193.09,62.77]
[1761335941632,5.17824756,193.12,193.09,62.77]
[1761335941954,39.57200419,193.11,193.09,0.77]
[1761335942132,3.49200419,193.1,193.09,0.77]
[1761335942327,4.18200419,193.1,193.09,0.1]
[1761335942741,40.26200419,193.1,193.09,0.1]
[1761335943951,43.75400838,193.1,193.09,0.1]
[1761335944159,48.93267228,193.1,193.09,0.1]
[1761335944355,59.80914749,193.1,193.09,0.1]
[1761335944672,33.75647521,193.07,193.06,0.1]
[1761335944969,37.2484794,193.07,193.06,0.1]
[1761335945134,74.0184794,193.07,193.06,0.1]
[1761335946137,79.19794798,193.07,193.06,0.1]
[1761335946656,28.05946858,193.07,193.06,0.1]
[1761335946864,45.44147277,193.07,193.06,0.1]
[1761335947987,22.88,193.1,193.06,0.77]
[1761335948150,3.49200419,193.07,193.06,0.1]
[1761335948349,3.49200419,193.07,193.06,0.77]
[1761335949466,3.49200419,193.08,193.06,0.77]
[1761335949650,41.25893798,193.09,193.06,0.77]
[1761335949857,3.49200419,193.07,193.06,0.77]
[1761335950167,8.67147277,193.07,193.06,0.1]
[1761335950944,44.75147277,193.07,193.06,0.1]
[1761335951140,39.57200419,193.07,193.06,0.77]
[1761335951466,36.08,193.07,193.06,0.1]
[1761335951670,3.49200419,193.1,193.06,67.949712]
[1761335952050,3.49200419,193.13,193.07,4.16200419]
[1761335952372,36.1,193.12,193.07,71.34147277]
[1761335952547,36.1,193.11,193.08,0.67]
[1761335952742,36.1,193.11,193.08,11.54647521]
[1761335952942,36.1,193.11,193.08,0.67]
[1761335953254,36.1,193.11,193.09,0.67]
[1761335953451,3.49200419,193.14,193.09,5.84884844]
[1761335953653,36.1,193.13,193.09,5.84884844]
[1761335953867,8.6693759,193.15,193.1,0.67]
[1761335954170,39.59200419,193.14,193.1,0.67]
[1761335954345,3.49200419,193.13,193.11,0.67]
[1761335954943,4.18200419,193.12,193.08,62.67]
[1761335955157,39.59200419,193.11,193.08,62.67]
[1761335955870,5.17819619,193.12,193.08,62.0]
[1761335956073,39.59200419,193.11,193.08,62.0]
[1761335956277,39.59200419,193.1,193.08,0.67]
[1761335956741,36.1,193.1,193.08,0.67]
[1761335956944,39.59200419,193.1,193.08,0.67]
[1761335957559,44.77070437,193.1,193.08,0.67]
[1761335957860,44.77070437,193.1,193.06,62.1]
[1761335958061,44.77070437,193.1,193.08,0.67]
[1761335958271,3.49200419,193.09,193.07,0.67]
[1761335958461,3.49200419,193.16,193.07,62.67]
[1761335958644,25.76,193.15,193.07,85.55]
[1761335958844,25.76,193.14,193.09,3.49200419]
[1761335959060,25.76,193.14,193.1,0.67]
[1761335959557,5.1765193,193.18,193.12,3.49200419]
[1761335959758,36.14,193.17,193.12,3.49200419]
[1761335959949,36.14,193.17,193.13,0.65]
[1761335960155,3.49200419,193.19,193.13,6.49841981]
[1761335960462,36.14,193.16,193.13,6.49841981]
[1761335960770,36.14,193.15,193.14,0.65]
[1761335961343,39.63200419,193.15,193.13,5.84841981]
[1761335961563,22.88,193.19,193.1,62.0]
[1761335961747,3.49200419,193.17,193.11,0.65]
[1761335962170,36.16,193.16,193.11,0.65]
[1761335962969,36.16,193.15,193.11,0.65]
[1761335963152,5.1765193,193.18,193.11,4.14200419]
[1761335963359,13.62990419,193.21,193.11,4.14200419]
[1761335963360,5.17625135,193.19,193.12,5.17812758]
[1761335963674,39.65200419,193.17,193.12,0.65]
[1761335963871,39.65200419,193.17,193.11,5.17828221]
[1761335964172,36.16,193.17,193.13,0.65]
[1761335964364,40.34200419,193.17,193.11,5.17828221]
[1761335964671,40.34200419,193.17,193.12,0.65]
[1761335964874,39.0825009,193.17,193.12,0.65]
[1761335966056,5.17705529,193.16,193.12,0.65]
[1761335966259,36.16,193.15,193.12,0.65]
[1761335967174,4.35506289,193.23,193.12,41.65343169]
[1761335967481,4.35506289,193.3,193.22,2.2325009]
[1761335967655,4.35506289,193.3,193.2,8.9300036]
[1761335967656,0.69,193.32,193.23,30.68918428]
[1761335967850,15.82,193.3,193.23,36.48168816]
[1761335968052,15.82,193.3,193.24,11.52647521]
[1761335968572,15.82,193.3,193.25,0.65]
[1761335968761,18.0525009,193.3,193.25,0.65]
[1761335968964,15.82,193.3,193.25,0.65]
[1761335970149,36.24,193.31,193.26,22.88]
[1761335970449,36.24,193.29,193.26,2.2325009]
[1761335970652,36.24,193.29,193.26,25.7625009]
[1761335971254,36.24,193.29,193.26,30.93687738]
[1761335971459,36.24,193.29,193.26,2.8825009]
[1761335971652,36.24,193.29,193.26,0.65]
[1761335971859,36.24,193.29,193.23,0.65]
[1761335972053,36.24,193.29,193.24,2.2325009]
[1761335972254,36.24,193.29,193.25,0.65]
[1761335972550,36.5,193.27,193.25,0.65]
[1761335974278,36.5,193.27,193.23,0.65]
[1761335974461,36.5,193.27,193.22,25.1125009]
[1761335974462,39.4225009,193.27,193.22,22.88]
[1761335974654,39.4225009,193.27,193.22,0.65]
[1761335975459,44.5966198,193.27,193.22,0.65]
[1761335975667,42.3641189,193.27,193.22,0.65]
[1761335976197,42.3641189,193.27,193.23,2.2325009]
[1761335976198,0.2,193.27,193.23,2.2325009]
[1761335976491,2.2325009,193.24,193.2,23.53]
[1761335976687,36.3,193.23,193.2,0.65]
[1761335977362,36.3,193.22,193.2,0.65]
[1761335979580,36.3,193.21,193.2,0.65]
[1761335980394,36.3,193.21,193.18,22.88]
[1761335980579,36.3,193.21,193.19,0.65]
[1761335981284,0.2,193.27,193.21,22.88]
[1761335981476,0.2,193.27,193.26,2.2325009]
[1761335981680,0.2,193.27,193.26,8.05687738]
[1761335982203,0.2,193.27,193.26,70.05687738]
[1761335982375,0.2,193.27,193.26,62.65]
[1761335982574,0.2,193.27,193.26,70.05687738]
[1761335983381,0.2,193.27,193.26,73.48508327]
[1761335984209,0.2,193.27,193.26,68.31070679]
[1761335984404,0.2,193.27,193.26,73.48508327]
[1761335985286,0.2,193.27,193.26,64.8825009]
[1761335985883,0.2,193.27,193.26,62.0]
[1761335986093,36.5,193.27,193.24,22.88]
[1761335986305,2.2325009,193.26,193.21,0.65]
[1761335986474,2.2325009,193.24,193.22,3.42723399]
[1761335986675,2.2325009,193.24,193.2,22.88]
[1761335986972,2.2325009,193.23,193.18,0.65]
[1761335987187,2.9225009,193.23,193.19,3.42945622]
[1761335987368,54.60943764,193.27,193.16,8.05946017]
[1761335987369,39.2225009,193.22,193.16,8.05946017]
[1761335987572,36.3,193.21,193.17,3.43001925]
[1761335987789,36.3,193.21,193.18,3.43001925]
[1761335988012,36.3,193.21,193.17,5.82672979]
[1761335988293,36.3,193.21,193.18,3.42987251]
[1761335988496,39.2225009,193.21,193.16,22.88]
[1761335988676,39.2225009,193.21,193.17,3.43059853]
[1761335988877,2.2325009,193.2,193.15,5.17712609]
[1761335989103,2.2325009,193.2,193.16,3.43104841]
[1761335989302,2.9225009,193.2,193.16,22.88]
[1761335989801,2.9225009,193.2,193.15,0.65]
[1761335989975,0.67,193.19,193.16,3.43246964]
[1761335990179,2.2325009,193.2,193.15,22.88]
[1761335990180,8.07849424,193.2,193.15,22.88]
[1761335990496,0.67,193.19,193.12,0.7]
[1761335990671,5.57960176,193.18,193.13,3.4349353]
[1761335990870,5.17599334,193.2,193.14,3.4349353]
[1761335991073,36.34,193.19,193.15,3.4349353]
[1761335991295,5.17575304,193.21,193.16,3.43630667]
[1761335991487,41.91960176,193.2,193.17,3.43630667]
[1761335991779,41.51575304,193.21,193.14,5.57960176]
[1761335992000,36.34,193.21,193.17,5.57960176]
[1761335992297,41.51573374,193.21,193.18,3.43725709]
[1761335992500,5.17548774,193.22,193.17,6.27960176]
[1761335992713,36.34,193.21,193.17,29.15960176]
[1761335993399,36.34,193.21,193.16,10.75654515]
[1761335993606,41.91960176,193.21,193.17,3.43878355]
[1761335993902,6.24960176,193.21,193.18,3.43819514]
[1761335994103,36.34,193.2,193.16,11.45654515]
[1761335994295,36.34,193.2,193.17,3.43853402]
[1761335994494,5.57960176,193.18,193.11,11.45795266]
[1761335994688,5.57960176,193.16,193.12,3.4422575]
[1761335994886,36.34,193.15,193.13,3.4422575]
[1761335995087,36.34,193.15,193.13,22.88]
[1761335995295,36.36,193.16,193.14,3.44378523]
[1761335995487,36.36,193.17,193.13,22.88]
[1761335995808,36.36,193.17,193.15,5.57960176]
[1761335996002,5.84624563,193.2,193.15,6.27960176]
[1761335996187,36.36,193.19,193.16,0.7]
[1761335996396,36.36,193.18,193.16,0.7]
[1761335996596,36.36,193.18,193.17,3.44352115]
[1761335996792,12.93724355,193.25,193.17,3.44352115]
[1761335996793,5.17460545,193.26,193.17,31.90312291]
[1761335996992,5.17460545,193.26,193.21,5.57960176]
[1761335996993,36.36,193.25,193.21,5.57960176]
[1761335997315,0.87,193.27,193.23,5.57960176]
[1761335997612,36.38,193.26,193.23,0.69]
[1761335998111,41.55438007,193.26,193.21,11.44516246]
[1761335998418,0.71,193.25,193.19,5.17604278]
[1761335998578,5.57960176,193.24,193.2,3.44288065]
[1761335998783,6.28960176,193.25,193.21,3.44288065]
[1761335998992,6.28960176,193.25,193.19,10.75564454]
[1761335999197,6.28960176,193.25,193.2,3.44338596]
[1761335999403,41.55438007,193.26,193.21,9.02298772]
[1761335999404,36.38,193.24,193.21,9.02298772]
[1761335999621,5.37413782,193.27,193.22,9.02298772]
[1761335999782,5.37413782,193.27,193.23,3.44338596]
[1761335999783,0.91,193.27,193.23,3.44338596]
[1761336000002,5.37412837,193.27,193.23,0.69]
[1761336000205,11.66373013,193.27,193.22,5.57960176]
[1761336000408,0.2,193.27,193.23,9.02357176]
[1761336000721,0.2,193.27,193.24,3.44397]
[1761336000910,0.71,193.26,193.21,5.17568991]
[1761336001231,0.2,193.27,193.22,9.02402623]
[1761336001527,36.6,193.27,193.23,14.19901407]
[1761336001737,0.2,193.27,193.26,5.57960176]
[1761336001912,0.2,193.27,193.22,5.17543781]
[1761336002112,5.57960176,193.25,193.2,5.17592561]
[1761336002335,36.4,193.24,193.21,3.44707497]